fUSD/lending_fUSD_20250916
["ID","MTS","AMOUNT","RATE_DAILY","PERIOD"]
[385861145,1758065447132,-1000.0,0.0002437,2]
[385861146,1758065447141,-500.0,0.0002437,2]
[385861147,1758065447151,-1000.0,0.0002437,2]
[385861148,1758065447162,-1000.0,0.0002437,2]
[385861149,1758065447172,-500.0,0.0002437,2]
[385861150,1758065447181,-151.0,0.0002437,2]
[385861151,1758065447190,-1000.0,0.0002437,2]
[385861152,1758065447199,-500.0,0.0002437,2]
[385861153,1758065447210,-1000.0,0.0002437,2]
[385861154,1758065447220,-1000.0,0.0002437,2]
[385861155,1758065447229,-500.0,0.0002437,2]
[385861156,1758065447239,-1000.0,0.0002437,2]
[385861157,1758065447249,-1000.0,0.0002437,2]
[385861158,1758065447259,-1000.0,0.0002437,2]
[385861159,1758065447268,-500.0,0.0002437,2]
[385861160,1758065447277,-1000.0,0.0002437,2]
[385861161,1758065447286,-1000.0,0.0002437,2]
[385861162,1758065447295,-500.0,0.0002437,2]
[385861163,1758065447309,-1000.0,0.0002437,2]
[385861164,1758065447319,-500.0,0.0002437,2]
[385861165,1758065447329,-500.0,0.0002437,2]
[385861166,1758065447339,-1000.0,0.0002437,2]
[385861167,1758065447348,-500.0,0.0002437,2]
[385861168,1758065447358,-1000.0,0.0002437,2]
[385861169,1758065447367,-500.0,0.0002437,2]
[385861170,1758065447376,-8565.75555911,0.0002437,2]
[385861171,1758065447386,-500.0,0.0002437,2]
[385861172,1758065447395,-179.97025373,0.0002437,2]
[385861173,1758065447405,-151.0,0.0002437,2]
[385861174,1758065447414,-151.0,0.0002437,2]
[385861175,1758065447424,-151.0,0.0002437,2]
[385861176,1758065447433,-151.0,0.0002437,2]
[385861177,1758065447442,-500.0,0.0002437,2]
[385861178,1758065447452,-151.0,0.0002437,2]
[385861179,1758065447461,-500.0,0.0002437,2]
[385861180,1758065447471,-151.0,0.0002437,2]
[385861181,1758065447481,-500.0,0.0002437,2]
[385861182,1758065447490,-151.0,0.0002437,2]
[385861183,1758065447500,-151.0,0.0002437,2]
[385861184,1758065447509,-500.0,0.0002437,2]
[385861185,1758065447519,-500.0,0.0002437,2]
[385861186,1758065447528,-151.0,0.0002437,2]
[385861187,1758065447538,-151.0,0.0002437,2]
[385861188,1758065447547,-500.0,0.0002437,2]
[385861189,1758065447557,-500.0,0.0002437,2]
[385861190,1758065447567,-151.0,0.0002437,2]
[385861191,1758065447576,-500.0,0.0002437,2]
[385861192,1758065447586,-500.0,0.0002437,2]
[385861193,1758065447595,-151.0,0.0002437,2]
[385861194,1758065447605,-500.0,0.0002437,2]
[385861195,1758065447614,-500.0,0.0002437,2]
[385861196,1758065447625,-151.0,0.0002437,2]
[385861197,1758065447634,-500.0,0.0002437,2]
[385861198,1758065447644,-500.0,0.0002437,2]
[385861199,1758065447653,-151.0,0.0002437,2]
[385861200,1758065447663,-500.0,0.0002437,2]
[385861201,1758065447672,-151.0,0.0002437,2]
[385861202,1758065447681,-500.0,0.0002437,2]
[385861203,1758065447690,-500.0,0.0002437,2]
[385861204,1758065447700,-500.0,0.0002437,2]
[385861205,1758065447710,-500.0,0.0002437,2]
[385861206,1758065447720,-500.0,0.0002437,2]
[385861207,1758065447730,-500.0,0.0002437,2]
[385861208,1758065447740,-500.0,0.0002437,2]
[385861209,1758065447749,-500.0,0.0002437,2]
[385861210,1758065447759,-500.0,0.0002437,2]
[385861211,1758065447768,-500.0,0.0002437,2]
[385861212,1758065447778,-500.0,0.0002437,2]
[385861213,1758065447787,-500.0,0.0002437,2]
[385861214,1758065447797,-500.0,0.0002437,2]
[385861215,1758065447806,-500.0,0.0002437,2]
[385861216,1758065447816,-3000.0,0.0002437,2]
[385861217,1758065447825,-151.0,0.0002437,2]
[385861218,1758065447834,-151.0,0.0002437,2]
[385861219,1758065447843,-151.0,0.0002437,2]
[385861220,1758065447853,-151.0,0.0002437,2]
[385861221,1758065447862,-151.0,0.0002437,2]
[385861222,1758065447871,-151.0,0.0002437,2]
[385861223,1758065447881,-151.0,0.0002437,2]
[385861224,1758065447891,-151.0,0.0002437,2]
[385861225,1758065447900,-160.0,0.0002437,2]
[385861226,1758065447909,-151.0,0.0002437,2]
[385861227,1758065447919,-500.0,0.0002437,2]
[385861228,1758065447928,-151.0,0.0002437,2]
[385861229,1758065447938,-151.0,0.0002437,2]
[385861230,1758065447947,-250.0,0.0002437,2]
[385861231,1758065447956,-151.0,0.0002437,2]
[385861232,1758065447966,-151.0,0.0002437,2]
[385861233,1758065447976,-151.0,0.0002437,2]
[385861234,1758065447985,-151.0,0.0002437,2]
[385861235,1758065447995,-151.0,0.0002437,2]
[385861236,1758065448004,-151.0,0.0002437,2]
[385861237,1758065448014,-500.0,0.0002437,2]
[385861238,1758065448024,-500.0,0.0002437,2]
[385861239,1758065448034,-500.0,0.0002437,2]
[385861240,1758065448043,-500.0,0.0002437,2]
[385861241,1758065448052,-500.0,0.0002437,2]
[385861242,1758065448062,-151.0,0.0002437,2]
[385861243,1758065448071,-500.0,0.0002437,2]
[385861244,1758065448080,-202.9931579,0.0002437,2]
[385861245,1758065448090,-500.0,0.0002437,2]
[385861246,1758065448100,-500.0,0.0002437,2]
[385861247,1758065448109,-500.0,0.0002437,2]
[385861248,1758065448118,-500.0,0.0002437,2]
[385861249,1758065448128,-500.0,0.0002437,2]
[385861250,1758065448138,-500.0,0.0002437,2]
[385861251,1758065448147,-500.0,0.0002437,2]
[385861252,1758065448156,-444.12776099,0.0002437,2]
[385861253,1758065448165,-150.0,0.00024371,2]
[385861254,1758065448176,-150.0,0.00024382,2]
[385861255,1758065448188,-1425.0,0.00024399,2]
[385861256,1758065448198,-5513.0,0.000244,5]
[385861257,1758065448212,-1000.0,0.00024413,2]
[385861258,1758065448221,-1000.0,0.00024415,2]
[385861259,1758065448231,-156.587,0.00024425,2]
[385861260,1758065448241,-8882.6885148,0.00024425,2]
[385861261,1758065448250,-150.0,0.0002444,2]
[385861262,1758065448260,-150.0,0.00024441,2]
[385861263,1758065448270,-550.0,0.00024442,2]
[385861264,1758065448279,-150.0,0.00024446,2]
[385861265,1758065448290,-1000.0,0.00024446,2]
[385861266,1758065448299,-1425.0,0.0002445,2]
[385861267,1758065448310,-508.2549789,0.00024458,7]
[385861268,1758065448319,-161.90209112,0.0002446,2]
[385861269,1758065448329,-1000.0,0.00024463,2]
[385861270,1758065448339,-497.0,0.00024464,2]
[385861271,1758065448349,-916.0,0.00024464,2]
[385861272,1758065448359,-3415.0,0.00024464,2]
[385861273,1758065448369,-915.0,0.00024464,2]
[385861274,1758065448379,-500.0,0.00024464,2]
[385861275,1758065448389,-1425.0,0.00024466,2]
[385861276,1758065448398,-150.0,0.00024475,2]
[385861277,1758065448408,-162.380719,0.0002448,2]
[385861278,1758065448418,-9211.34798985,0.0002448,2]
[385861279,1758065448428,-1000.0,0.00024503,2]
[385861280,1758065448438,-150.0,0.00024509,2]
[385861281,1758065448447,-1425.0,0.00024515,2]
[385861282,1758065448457,-402.40795164,0.00024517,2]
[385861283,1758065448467,-150.0,0.00024528,2]
[385861284,1758065448477,-150.0,0.00024534,2]
[385861285,1758065448487,-150.0,0.00024535,2]
[385861286,1758065448497,-168.3888056,0.00024535,2]
[385861287,1758065448507,-9552.16786547,0.00024535,2]
[385861288,1758065448517,-1000.0,0.00024542,2]
[385861289,1758065448527,-1425.0,0.0002455,2]
[385861290,1758065448537,-1000.0,0.0002457,2]
[385861291,1758065448548,-1425.0,0.0002458,2]
[385861292,1758065448558,-1000.0,0.00024581,2]
[385861293,1758065448568,-1425.0,0.00024587,2]
[385861294,1758065448578,-174.61919141,0.0002459,2]
[385861295,1758065448588,-9905.5980765,0.0002459,2]
[385861296,1758065448598,-150.0,0.00024607,2]
[385861297,1758065448608,-1000.0,0.00024615,2]
[385861298,1758065448618,-150.0,0.00024622,2]
[385861299,1758065448627,-1425.0,0.00024629,2]
[385861300,1758065448637,-150.0,0.00024641,2]
[385861301,1758065448647,-1425.0,0.00024642,2]
[385861302,1758065448661,-181.08010149,0.00024645,2]
[385861303,1758065448671,-10272.10520533,0.00024645,2]
[385861304,1758065448681,-163.41465413,0.00024649,2]
[385861305,1758065448691,-1425.0,0.00024649,2]
[385861306,1758065448701,-1000.0,0.00024658,2]
[385861307,1758065448711,-292.21,0.00024658,2]
[385861308,1758065448721,-1000.0,0.00024658,2]
[385861309,1758065448731,-1000.0,0.00024658,2]
[385861310,1758065448741,-1000.0,0.00024658,2]
[385861311,1758065448751,-1000.0,0.00024658,2]
[385861312,1758065448760,-1000.0,0.00024658,2]
[385861313,1758065448770,-1000.0,0.00024658,2]
[385861314,1758065448779,-1000.0,0.00024658,2]
[385861315,1758065448789,-1000.0,0.00024658,2]
[385861316,1758065448798,-1000.0,0.00024658,2]
[385861317,1758065448809,-1000.0,0.00024658,2]
[385861318,1758065448819,-1000.0,0.00024658,2]
[385861319,1758065448829,-1000.0,0.00024658,2]
[385861320,1758065448838,-1000.0,0.00024658,2]
[385861321,1758065448848,-1000.0,0.00024658,2]
[385861322,1758065448857,-1000.0,0.00024658,2]
[385861323,1758065448867,-1000.0,0.00024658,2]
[385861324,1758065448876,-1000.0,0.00024658,2]
[385861325,1758065448886,-1000.0,0.00024658,2]
[385861326,1758065448895,-1000.0,0.00024658,2]
[385861327,1758065448905,-1000.0,0.00024658,2]
[385861328,1758065448914,-1000.0,0.00024658,2]
[385861329,1758065448924,-1000.0,0.00024658,2]
[385861330,1758065448933,-1000.0,0.00024658,2]
[385861331,1758065448943,-1000.0,0.00024658,2]
[385861332,1758065448953,-1000.0,0.00024658,2]
[385861333,1758065448962,-1000.0,0.00024658,2]
[385861334,1758065448972,-1000.0,0.00024658,2]
[385861335,1758065448981,-1000.0,0.00024658,2]
[385861336,1758065448991,-1000.0,0.00024658,2]
[385861337,1758065449000,-1000.0,0.00024658,2]
[385861338,1758065449011,-1000.0,0.00024658,2]
[385861339,1758065449020,-1000.0,0.00024658,2]
[385861340,1758065449029,-1000.0,0.00024658,2]
[385861341,1758065449039,-1000.0,0.00024658,2]
[385861342,1758065449049,-1000.0,0.00024658,2]
[385861343,1758065449059,-1000.0,0.00024658,2]
[385861344,1758065449068,-1000.0,0.00024658,2]
[385861345,1758065449077,-1000.0,0.00024658,2]
[385861346,1758065449087,-1000.0,0.00024658,2]
[385861347,1758065449097,-1000.0,0.00024658,2]
[385861348,1758065449110,-1000.0,0.00024658,2]
[385861349,1758065449119,-1000.0,0.00024658,2]
[385861350,1758065449129,-1000.0,0.00024658,2]
[385861351,1758065449138,-1000.0,0.00024658,2]
[385861352,1758065449148,-1000.0,0.00024658,2]
[385861353,1758065449158,-1000.0,0.00024658,2]
[385861354,1758065449168,-1000.0,0.00024658,2]
[385861355,1758065449178,-206.0,0.00024658,2]
[385861356,1758065449345,-151.0,0.00024658,7]
[385861357,1758065449354,-153.571011,0.00024658,7]
[385861358,1758065449364,-153.150351,0.00024658,7]
[385861359,1758065449373,-151.0,0.00024658,7]
[385861360,1758065449383,-151.86463,0.00024658,7]
[385861361,1758065449393,-151.0,0.00024658,7]
[385861362,1758065449404,-152.610856,0.00024658,7]
[385861363,1758065449414,-212.742647,0.00024658,7]
[385861364,1758065449423,-151.0,0.00024658,7]
[385861365,1758065449433,-151.0,0.00024658,7]
[385861366,1758065449442,-151.0,0.00024658,7]
[385861367,1758065449452,-151.0,0.00024658,7]
[385861368,1758065449461,-151.0,0.00024658,7]
[385861369,1758065449470,-151.0,0.00024658,7]
[385861370,1758065449479,-151.0,0.00024658,7]
[385861371,1758065449490,-173.809067,0.00024658,7]
[385861372,1758065449500,-173.809067,0.00024658,7]
[385861373,1758065449510,-173.809067,0.00024658,7]
[385861374,1758065449522,-173.809067,0.00024658,7]
[385861375,1758065449531,-201.453293,0.00024658,7]
[385861376,1758065449541,-151.0,0.00024658,7]
[385861377,1758065449551,-151.0,0.00024658,7]
[385861378,1758065449560,-151.0,0.00024658,7]
[385861379,1758065449569,-151.0,0.00024658,7]
[385861380,1758065449578,-152.804255,0.00024658,7]
[385861381,1758065449587,-153.374346,0.00024658,7]
[385861382,1758065449597,-151.0,0.00024658,7]
[385861383,1758065449606,-152.803697,0.00024658,7]
[385861384,1758065449616,-151.0,0.00024658,7]
[385861385,1758065449626,-151.0,0.00024658,7]
[385861386,1758065449635,-153.74877,0.00024658,7]
[385861387,1758065449644,-500.0,0.00024658,2]
[385861388,1758065449654,-150.0,0.00024665,2]
[385861389,1758065449669,-1425.0,0.00024665,2]
[385861390,1758065449679,-1000.0,0.0002467,2]
[385861391,1758065449688,-150.0,0.00024694,2]
[385861392,1758065449698,-187.78006525,0.000247,2]
[385861393,1758065449708,-10652.17309792,0.000247,2]
[385861394,1758065449717,-1425.0,0.00024702,2]
[385861395,1758065449727,-218.61570057,0.00024714,2]
[385861396,1758065449738,-300.0,0.00024718,2]
[385861397,1758065449747,-1000.0,0.00024728,2]
[385861398,1758065449756,-150.0,0.0002473,2]
[385861399,1758065449766,-497.0,0.00024738,2]
[385861400,1758065449775,-916.0,0.00024738,2]
[385861401,1758065449785,-3415.0,0.00024738,2]
[385861402,1758065449794,-915.0,0.00024738,2]
[385861403,1758065449804,-500.0,0.00024738,2]
[385861404,1758065449813,-1425.0,0.00024744,2]
[385861405,1758065449823,-1425.0,0.00024749,2]
[385861406,1758065449832,-194.72792766,0.00024755,2]
[385861407,1758065449842,-11046.30350255,0.00024755,2]
[385861408,1758065449851,-150.0,0.00024757,2]
[385861409,1758065449861,-1000.0,0.0002476,2]
[385861410,1758065449870,-1425.0,0.00024763,2]
[385861411,1758065449879,-150.0,0.00024775,2]
[385861412,1758065449889,-275.72827407,0.00024777,2]
[385861413,1758065449898,-351.41838851,0.00024778,2]
[385861414,1758065449907,-427.10850296,0.0002478,2]
[385861415,1758065449916,-502.79861741,0.00024782,2]
[385861416,1758065449925,-578.48873186,0.00024783,2]
[385861417,1758065449935,-654.17884631,0.00024785,2]
[385861418,1758065449944,-729.86896076,0.00024787,2]
[385861419,1758065449954,-805.55907521,0.00024788,2]
[385861420,1758065449967,-1425.0,0.00024788,2]
[385861421,1758065449976,-881.24918968,0.0002479,2]
[385861422,1758065449986,-404445.057911,0.000248,3]
[385861423,1758065449995,-3764.39537623,0.00024804,2]
[385861424,1758065450005,-201.93286099,0.0002481,2]
[385861425,1758065450014,-11455.01673214,0.0002481,2]
[385861426,1758065450023,-1425.0,0.00024823,2]
[385861427,1758065450032,-150.0,0.00024826,2]
[385861428,1758065450042,-150.0,0.00024836,2]
[385861429,1758065450052,-162.63,0.00024843,2]
[385861430,1758065450061,-600.0,0.0002485,2]
[385861431,1758065450070,-209.40437684,0.00024865,2]
[385861432,1758065450080,-11878.85235123,0.00024865,2]
[385861433,1758065450090,-1425.0,0.00024881,2]
[385861434,1758065450099,-1425.0,0.00024883,2]
[385861435,1758065450108,-524.52673657,0.00024884,2]
[385861436,1758065450117,-557.51909734,0.0002489,2]
[385861437,1758065450126,-15955.41521653,0.000249,2]
[385861438,1758065450135,-478880.604152,0.000249,3]
[385861439,1758065450145,-1425.0,0.0002491,2]
[385861440,1758065450154,-1425.0,0.00024917,2]
[385861441,1758065450163,-151.0,0.00024918,2]
[385861442,1758065450173,-151.0,0.00024918,2]
[385861443,1758065450183,-151.0,0.00024918,2]
[385861444,1758065450192,-151.0,0.00024918,2]
[385861445,1758065450202,-151.0,0.00024918,2]
[385861446,1758065450211,-273.991423,0.0002492,7]
[385861447,1758065450220,-151.0,0.0002492,7]
[385861448,1758065450229,-201.71208021,0.0002492,2]
[385861449,1758065450239,-12318.36988823,0.0002492,2]
[385861450,1758065450248,-500.0,0.00024932,2]
[385861451,1758065450258,-150.0,0.00024933,2]
[385861452,1758065450267,-150.0,0.00024944,2]
[385861453,1758065450277,-150.0,0.00024947,2]
[385861454,1758065450287,-1425.0,0.0002495,2]
[385861455,1758065450297,-1425.0,0.00024951,2]
[385861456,1758065450306,-12774.14957409,0.00024975,2]
[385861457,1758065450315,-150.0,0.00024988,2]
[385861458,1758065450325,-265.30012593,0.0002499,2]
[385861459,1758065450334,-1000.0,0.00024999,2]
[385861460,1758065450343,-37311.16,0.00025,7]
[385861461,1758065450353,-2702.25254894,0.00025,3]
[385861462,1758065450362,-352.25085986,0.00025,2]
[385861463,1758065450372,-360.0,0.00025,2]
[385861464,1758065450381,-2986.14792546,0.00025,2]
[385861465,1758065450390,-3172.95770693,0.00025,2]
[385861466,1758065450400,-15050.74424983,0.00025,2]
[385861467,1758065450409,-1044.10841127,0.00025,2]
[385861468,1758065450418,-164.10963093,0.00025,2]
[385861469,1758065450427,-3225.87307139,0.00025,2]
[385861470,1758065450436,-6582.42947,0.00025,2]
[385861471,1758065450446,-151.0,0.00025,7]
[385861472,1758065450456,-151.0,0.00025,7]
[385861473,1758065450466,-151.0,0.00025,7]
[385861474,1758065450475,-151.0,0.00025,7]
[385861475,1758065450484,-151.0,0.00025,7]
[385861476,1758065450494,-152.592364,0.00025,7]
[385861477,1758065450503,-151.0,0.00025,7]
[385861478,1758065450512,-151.0,0.00025,7]
[385861479,1758065450521,-159.109225,0.00025,7]
[385861480,1758065450531,-151.0,0.00025,7]
[385861481,1758065450540,-151.0,0.00025,7]
[385861482,1758065450549,-151.0,0.00025,7]
[385861483,1758065450558,-151.0,0.00025,7]
[385861484,1758065450569,-151.0,0.00025,7]
[385861485,1758065450579,-173.809067,0.00025,7]
[385861486,1758065450590,-173.809067,0.00025,7]
[385861487,1758065450600,-173.809067,0.00025,7]
[385861488,1758065450608,-173.809067,0.00025,7]
[385861489,1758065450620,-151.0,0.00025,7]
[385861490,1758065450631,-151.0,0.00025,7]
[385861491,1758065450641,-151.0,0.00025,7]
[385861492,1758065450652,-151.0,0.00025,7]
[385861493,1758065450667,-151.0,0.00025,7]
[385861494,1758065450678,-151.0,0.00025,7]
[385861495,1758065450687,-15000.0,0.0002501,2]
[385861496,1758065450697,-497.0,0.00025011,2]
[385861497,1758065450707,-916.0,0.00025011,2]
[385861498,1758065450717,-3415.0,0.00025011,2]
[385861499,1758065450726,-915.0,0.00025011,2]
[385861500,1758065450736,-257.28060113,0.00025011,2]
[385861501,1758065450745,-13246.79310833,0.0002503,2]
[385861502,1758065450755,-13736.92445334,0.00025085,2]
[385861503,1758065450764,-105395.75237668,0.000251,2]
[385861504,1758065450774,-600.0,0.00025205,2]
[385861505,1758065450783,-500.0,0.00025206,2]
[385861506,1758065450793,-215.0738,0.0002526,2]
[385861507,1758065450804,-500.0,0.00025274,2]
[385861508,1758065450813,-497.0,0.00025285,2]
[385861509,1758065450823,-916.0,0.00025285,2]
[385861510,1758065450832,-3415.0,0.00025285,2]
[385861511,1758065450842,-915.0,0.00025285,2]
[385861512,1758065450852,-10883.327608,0.00025303,2]
[385861513,1758065450863,-2586.537196,0.00025303,2]
[385861514,1758065450874,-823.0,0.00025397,2]
[385861515,1758065450883,-600.0,0.00025398,2]
[385861516,1758065450892,-151.0,0.00025466,2]
[385861517,1758065450901,-151.0,0.00025466,2]
[385861518,1758065450911,-151.0,0.00025466,2]
[385861519,1758065450921,-228.11262476,0.00025466,2]
[385861520,1758065450931,-151.0,0.00025466,2]
[385861521,1758065450940,-500.0,0.0002548,2]
[385861522,1758065450950,-218.39609816,0.0002554,2]
[385861523,1758065450960,-497.0,0.00025559,2]
[385861524,1758065450969,-916.0,0.00025559,2]
[385861525,1758065450979,-3415.0,0.00025559,2]
[385861526,1758065450988,-915.0,0.00025559,2]
[385861527,1758065450997,-506.35500661,0.0002561,2]
[385861528,1758065451007,-3292.0,0.00025703,2]
[385861529,1758065451016,-334.5472959,0.00025739,2]
[385861530,1758065451025,-257.91778498,0.00025739,2]
[385861531,1758065451035,-3111.0,0.00025739,2]
[385861532,1758065451044,-160.0,0.00025739,2]
[385861533,1758065451053,-500.0,0.00025754,2]
[385861534,1758065451063,-497.0,0.00025833,2]
[385861535,1758065451072,-916.0,0.00025833,2]
[385861536,1758065451082,-3415.0,0.00025833,2]
[385861537,1758065451091,-915.0,0.00025833,2]
[385861538,1758065451101,-700.0,0.000259,9]
[385861539,1758065451110,-600.0,0.00025946,2]
[385861540,1758065451120,-5569.36168375,0.00025978,2]
[385861541,1758065451129,-589.34940244,0.0002599,2]
[385861542,1758065451138,-1021.09,0.00026,2]
[385861543,1758065451148,-3367.4471573,0.00026,2]
[385861544,1758065451157,-15627.55790029,0.00026,7]
[385861545,1758065451166,-2013.48440894,0.00026,2]
[385861546,1758065451176,-163.84718047,0.00026,10]
[385861547,1758065451185,-4000.0,0.00026,4]
[385861548,1758065451194,-151.0,0.00026014,2]
[385861549,1758065451203,-151.0,0.00026014,2]
[385861550,1758065451212,-151.0,0.00026014,2]
[385861551,1758065451221,-151.0,0.00026014,2]
[385861552,1758065451231,-162.63,0.00026026,2]
[385861553,1758065451240,-151.0,0.00026027,7]
[385861554,1758065451250,-151.0,0.00026027,7]
[385861555,1758065451259,-151.0,0.00026027,7]
[385861556,1758065451269,-151.0,0.00026027,7]
[385861557,1758065451278,-151.0,0.00026027,7]
[385861558,1758065451287,-151.0,0.00026027,7]
[385861559,1758065451297,-500.0,0.00026028,2]
[385861560,1758065451436,-518.1073969,0.00026107,2]
[385861561,1758065451446,-922.17123872,0.00026107,2]
[385861562,1758065451456,-3427.884352,0.00026107,2]
[385861563,1758065451465,-935.0,0.00026107,2]
[385861564,1758065451476,-800.0,0.00026164,2]
[385861565,1758065451486,-500.0,0.00026302,2]
[385861566,1758065451496,-1348.08,0.00026487,2]
[385861567,1758065451506,-600.0,0.00026494,2]
[385861568,1758065451516,-33479.72788809,0.000265,2]
[385861569,1758065451526,-151.0,0.00026562,2]
[385861570,1758065451535,-151.0,0.00026562,2]
[385861571,1758065451545,-151.0,0.00026562,2]
[385861572,1758065451554,-151.0,0.00026562,2]
[385861573,1758065451563,-343.37,0.00026575,7]
[385861574,1758065451572,-438.67162141,0.00026576,2]
[385861575,1758065451581,-37311.16,0.000266,7]
[385861576,1758065451592,-393.89675723,0.00026644,2]
[385861577,1758065451601,-161.90209112,0.00026741,2]
[385861578,1758065451611,-176.96836635,0.00026748,2]
[385861579,1758065451621,-2000.0,0.000268,2]
[385861580,1758065451630,-168.72547305,0.00026918,13]
[385861581,1758065451639,-12288.81127426,0.00027,2]
[385861582,1758065451648,-250.0,0.00027,2]
[385861583,1758065451661,-1014.66124548,0.00027,2]
[385861584,1758065451671,-2962.49457667,0.00027,15]
[385861585,1758065451680,-600.0,0.00027042,2]
[385861586,1758065451689,-346.92554585,0.00027108,2]
[385861587,1758065451699,-267.46074303,0.00027108,2]
[385861588,1758065451708,-356.37156909,0.00027108,2]
[385861589,1758065451718,-160.0,0.00027108,2]
[385861590,1758065451727,-670.58624095,0.00027109,2]
[385861591,1758065451738,-156.587,0.00027109,2]
[385861592,1758065451748,-151.0,0.0002711,2]
[385861593,1758065451758,-151.0,0.0002711,2]
[385861594,1758065451767,-151.0,0.0002711,2]
[385861595,1758065451776,-151.0,0.0002711,2]
[385861596,1758065451786,-1000.0,0.00027123,2]
[385861597,1758065451795,-936.09,0.00027123,2]
[385861598,1758065451805,-553.0,0.00027137,2]
[385861599,1758065451815,-162.63,0.00027209,2]
[385861600,1758065451824,-1021.09,0.000273,2]
[385861601,1758065451834,-4032.65902738,0.0002739,2]
[385861602,1758065451844,-7966.11758634,0.0002739,2]
[385861603,1758065451853,-3180.28805681,0.0002739,2]
[385861604,1758065451863,-500.0,0.00027396,2]
[385861605,1758065451872,-500.0,0.00027396,2]
[385861606,1758065451881,-500.0,0.00027396,2]
[385861607,1758065451891,-500.0,0.00027396,2]
[385861608,1758065451900,-500.0,0.00027396,2]
[385861609,1758065451909,-500.0,0.00027396,2]
[385861610,1758065451918,-500.0,0.00027396,2]
[385861611,1758065451927,-443.70311775,0.00027396,2]
[385861612,1758065451936,-150.0,0.00027397,2]
[385861613,1758065451946,-292.21,0.00027397,2]
[385861614,1758065451955,-300.0,0.00027397,2]
[385861615,1758065451964,-150.0,0.00027397,5]
[385861616,1758065451974,-156.12626755,0.00027397,5]
[385861617,1758065451983,-500.0,0.00027397,5]
[385861618,1758065451993,-153.24,0.00027425,30]
[385861619,1758065452002,-160.0,0.00027439,2]
[385861620,1758065452011,-218.39609816,0.00027453,2]
[385861621,1758065452020,-197.26994272,0.000275,2]
[385861622,1758065452029,-538.84008645,0.000275,2]
[385861623,1758065452039,-160.0,0.00027514,2]
[385861624,1758065452048,-160.0,0.00027514,2]
[385861625,1758065452057,-515.95536276,0.00027514,2]
[385861626,1758065452067,-600.0,0.0002759,2]
[385861627,1758065452076,-151.0,0.00027658,2]
[385861628,1758065452084,-151.0,0.00027658,2]
[385861629,1758065452093,-151.0,0.00027658,2]
[385861630,1758065452102,-151.0,0.00027658,2]
[385861631,1758065452111,-213.1401216,0.00027659,2]
[385861632,1758065452121,-1152.0,0.00027664,2]
[385861633,1758065452130,-250.0,0.00027945,5]
[385861634,1758065452139,-1000.0,0.00027945,5]
[385861635,1758065452149,-22000.0,0.0002799,2]
[385861636,1758065452158,-223.0315306,0.00027999,2]
[385861637,1758065452168,-7979.75811189,0.00028,2]
[385861638,1758065452178,-159.59516223,0.00028,2]
[385861639,1758065452187,-265.35229916,0.00028,2]
[385861640,1758065452199,-4000.0,0.00028,4]
[385861641,1758065452208,-5569.36168375,0.00028004,2]
[385861642,1758065452217,-470.91,0.00028041,30]
[385861643,1758065452227,-188.96,0.00028041,30]
[385861644,1758065452239,-1200.0,0.00028082,5]